bitfinex/quotes_ETHUSD_20250508
["timestamp","ask_amount","ask_price","bid_price","bid_amount"]
[1746736059627,4.71396456,2121.4,2121.0,0.7681]
[1746736059824,4.71471467,2121.1,2120.9,3.0]
[1746736060125,4.71470712,2121.1,2121.0,6.11]
[1746736060851,6.26262212,2121.1,2121.0,6.11]
[1746736061250,5.26542415,2120.7,2120.6,3.0]
[1746736061451,5.26542415,2120.7,2120.6,6.11]
[1746736065378,4.71564651,2120.6,2120.5,6.11]
[1746736065539,5.26564651,2120.6,2120.5,6.11]
[1746736066446,7.00168692,2120.6,2120.5,6.11]
[1746736066842,7.00168692,2120.6,2120.2,6.11]
[1746736066843,5.26631372,2120.3,2120.2,6.11]
[1746736067269,5.26631372,2120.3,2120.0,6.11]
[1746736067270,4.71675864,2120.1,2120.0,6.11]
[1746736067439,4.71742617,2119.8,2119.7,6.11]
[1746736067766,5.26742617,2119.8,2119.7,6.11]
[1746736069474,4.71698266,2120.0,2119.7,6.11]
[1746736069475,4.71706562,2120.0,2119.7,6.11]
[1746736069676,4.7172396,2119.9,2119.7,6.11]
[1746736070171,4.71742617,2119.8,2119.7,6.11]
[1746736070782,5.26742617,2119.8,2119.7,6.11]
[1746736070980,9.35343045,2120.3,2119.7,6.11]
[1746736070981,0.8141,2120.3,2119.8,0.8272]
[1746736071178,4.71717856,2120.0,2119.8,17.0772]
[1746736071493,5.26720364,2119.9,2119.8,17.0772]
[1746736071698,5.26720364,2119.9,2119.8,16.25]
[1746736071860,0.55,2119.9,2119.8,16.25]
[1746736072060,5.26639256,2120.3,2119.8,16.25]
[1746736072610,5.2664795,2120.3,2119.9,0.04716938]
[1746736072896,17.8017,2120.9,2120.0,20.0772]
[1746736073061,8.53964811,2120.6,2120.2,3.0]
[1746736073460,8.53964811,2120.6,2120.2,7.71649664]
[1746736074004,17.8017,2120.9,2120.3,4.7162232]
[1746736074185,0.818,2121.2,2120.4,15.41971471]
[1746736074395,4.71498418,2120.9,2120.5,0.04715336]
[1746736074690,4.71542415,2120.7,2120.6,6.11]
[1746736075005,4.7148951,2121.0,2120.6,6.11]
[1746736075288,4.7152221,2120.8,2120.6,6.11]
[1746736076669,4.71528875,2120.8,2120.6,6.11]
[1746736077898,4.71528875,2120.8,2120.6,8.66597799]
[1746736078862,4.71514042,2120.9,2120.6,8.66597799]
[1746736079093,5.26488869,2121.0,2120.6,8.71313136]
[1746736080110,4.71460637,2121.1,2120.7,6.11]
[1746736080264,4.71402384,2121.4,2121.0,3.0]
[1746736080607,0.8051,2122.0,2121.4,5.50302394]
[1746736080811,21.69400479,2122.7,2121.5,16.25]
[1746736080812,4.71342383,2121.6,2121.5,16.25]
[1746736081182,3.824,2122.0,2121.5,16.25]
[1746736081382,8.5366282,2122.0,2121.6,3.0]
[1746736081703,4.71286798,2121.9,2121.6,3.04712936]
[1746736082108,4.71298036,2121.8,2121.6,3.0]
[1746736082308,4.71286968,2121.9,2121.6,3.0]
[1746736082507,0.55,2122.2,2121.6,3.0]
[1746736082805,4.71278364,2121.9,2121.6,3.0]
[1746736083009,4.71278364,2121.9,2121.6,5.42077313]
[1746736084011,4.71213195,2122.2,2121.5,16.25]
[1746736084213,4.71336108,2121.7,2121.5,16.25]
[1746736085701,4.71342383,2121.6,2121.5,19.25]
[1746736085938,4.71333282,2121.7,2121.5,19.25]
[1746736086139,4.71333282,2121.7,2121.6,16.25]
[1746736087130,4.71294445,2121.9,2121.6,16.25]
[1746736087493,4.7130632,2121.8,2121.6,18.72529646]
[1746736087936,4.7130632,2121.8,2121.6,16.25]
[1746736088667,4.71315189,2121.8,2121.6,16.25]
[1746736089122,4.71315189,2121.8,2121.7,16.25]
[1746736089822,4.71279762,2121.9,2121.7,16.25]
[1746736090054,20.787,2122.7,2121.7,16.25]
[1746736090055,4.71156314,2122.5,2122.0,3.0]
[1746736090326,4.71209122,2122.2,2122.1,19.25]
[1746736090732,0.55,2122.8,2122.1,19.25]
[1746736091024,4.71209122,2122.2,2122.1,19.25]
[1746736091370,5.26209122,2122.2,2122.1,16.25]
[1746736091546,4.71209122,2122.2,2122.1,16.25]
[1746736091746,4.71175665,2122.4,2122.1,16.25]
[1746736091936,4.71203218,2122.3,2122.1,18.33393]
[1746736092341,5.26170077,2122.4,2122.1,18.33393]
[1746736092650,5.26180892,2122.4,2122.1,18.33393]
[1746736092844,0.55,2122.4,2122.1,18.33393]
[1746736093054,4.71195615,2122.3,2122.1,18.33393]
[1746736093459,4.71209122,2122.2,2122.1,21.33393]
[1746736093762,4.71175541,2122.4,2122.1,21.33393]
[1746736093937,9.42361852,2122.4,2122.1,21.33393]
[1746736094139,4.71203716,2122.3,2122.1,21.33393]
[1746736094961,5.26209122,2122.2,2122.1,16.25]
[1746736095164,5.26320167,2121.7,2121.6,16.25]
[1746736095341,4.71345277,2121.6,2121.2,4.71420291]
[1746736095525,4.71345277,2121.6,2121.3,3.0]
[1746736095860,4.71345277,2121.6,2121.4,0.77142029]
[1746736096061,5.26332523,2121.7,2121.4,0.77142029]
[1746736096223,0.55,2121.7,2121.3,3.0]
[1746736096423,0.55,2121.7,2121.3,0.04713458]
[1746736096648,5.26334142,2121.7,2121.3,0.04713458]
[1746736096964,5.26334142,2121.7,2121.3,3.04713458]
[1746736097265,9.97675771,2121.7,2121.3,3.0]
[1746736097423,4.7135423,2121.6,2121.3,6.2475675]
[1746736098028,4.7135423,2121.6,2121.3,6.29470209]
[1746736098274,4.7135423,2121.6,2121.3,6.2475675]
[1746736099025,0.8302,2122.0,2121.3,11.00878818]
[1746736099233,0.55,2121.8,2121.5,4.71353134]
[1746736099469,4.71332861,2121.7,2121.5,1.64417734]
[1746736099694,10.52904961,2122.3,2121.4,3.7667]
[1746736099878,0.55,2121.8,2121.6,3.0]
[1746736100037,0.55,2121.8,2121.6,19.25]
[1746736100353,0.55,2121.9,2121.6,23.963415]
[1746736100561,0.55,2121.9,2121.7,2.3963415]
[1746736100855,5.26277055,2121.9,2121.7,2.3963415]
[1746736101054,5.26277055,2121.9,2121.6,19.25]
[1746736101255,5.26261861,2122.0,2121.6,19.25]
[1746736101971,4.71286179,2121.9,2121.6,19.25]
[1746736102477,5.26254285,2122.0,2121.6,19.25]
[1746736102660,4.71276852,2121.9,2121.6,21.7230258]
[1746736103382,4.71242617,2122.1,2121.7,4.71319073]
[1746736103680,4.71222974,2122.2,2122.0,6.11]
[1746736104031,4.71231327,2122.1,2122.0,6.11]
[1746736104257,5.26231327,2122.1,2122.0,6.11]
[1746736105767,7.51345561,2122.1,2122.0,6.11]
[1746736106002,6.04481327,2122.1,2122.0,6.11]
[1746736106270,5.26231327,2122.1,2122.0,6.11]
[1746736107657,4.71225769,2122.2,2122.0,6.11]
[1746736107868,0.8254,2122.8,2122.0,3.786]
[1746736108065,4.7112933,2122.6,2122.3,3.0]
[1746736108268,4.71155971,2122.5,2122.2,3.0]
[1746736108441,4.71155971,2122.5,2122.2,3.35584986]
[1746736108861,4.71155971,2122.5,2122.2,3.61966542]
[1746736109187,4.71186919,2122.3,2122.2,0.26381556]
[1746736109468,5.26186919,2122.3,2122.2,6.37381556]
[1746736109651,6.03096919,2122.3,2122.2,6.37381556]
[1746736110254,6.03096919,2122.3,2122.2,6.11]
[1746736113976,0.55,2122.4,2122.2,6.11]
[1746736114183,0.55,2122.4,2122.2,7.23316033]
[1746736114489,5.26170578,2122.4,2122.2,7.23316033]
[1746736114852,4.71154125,2122.5,2122.2,7.23316033]
[1746736115052,4.7117387,2122.4,2122.2,7.23316033]
[1746736115452,4.71133104,2122.6,2122.3,4.09988719]
[1746736115673,4.71133104,2122.6,2122.4,6.11]
[1746736115674,0.55,2122.6,2122.4,6.11]
[1746736116150,4.7114252,2122.5,2122.4,6.11]
[1746736116582,5.26128168,2122.6,2122.4,6.11]
[1746736117798,9.97269871,2122.6,2122.4,6.11]
[1746736118157,4.7114252,2122.5,2122.4,6.11]
[1746736118486,0.55,2122.6,2122.4,6.11]
[1746736118695,0.55,2122.6,2122.5,9.11]
[1746736118851,4.71052201,2123.0,2122.5,8.49033947]
[1746736119050,4.71120324,2122.6,2122.5,0.779]
[1746736119262,4.7114252,2122.5,2122.4,20.025]
[1746736119463,4.7114252,2122.5,2122.4,16.25]
[1746736119663,5.2614252,2122.5,2122.4,6.11]
[1746736120069,6.72978658,2122.5,2122.4,6.11]
[1746736120790,5.2614252,2122.5,2122.4,6.11]
[1746736127871,4.71120324,2122.6,2122.4,6.11]
[1746736128264,4.7114252,2122.5,2122.4,6.11]
[1746736128872,5.26132605,2122.6,2122.4,6.11]
[1746736129075,4.71047461,2123.0,2122.7,0.8259]
[1746736129399,4.71064049,2122.9,2122.7,1.09013668]
[1746736130206,4.71047461,2123.0,2122.7,1.09013668]
[1746736130574,0.55,2123.0,2122.7,1.09013668]
[1746736130773,4.70996576,2123.2,2122.7,7.53965297]
[1746736130985,4.71017522,2123.1,2122.7,2.82886091]
[1746736131202,4.70996898,2123.2,2122.7,2.82886091]
[1746736131203,4.71031579,2123.0,2122.7,2.82886091]
[1746736131405,0.55,2123.3,2122.7,2.82886091]
[1746736131406,5.26016433,2123.1,2122.7,7.53982943]
[1746736131581,4.71035457,2123.0,2122.7,2.56462423]
[1746736131911,4.71035457,2123.0,2122.8,7.44857425]
[1746736132210,4.71035457,2123.0,2122.9,6.11]
[1746736132373,5.26019539,2123.1,2122.9,6.11]
[1746736132573,4.71031559,2123.0,2122.9,6.11]
[1746736132974,4.71026587,2123.1,2122.9,6.11]
[1746736133314,0.55,2123.1,2122.9,6.11]
[1746736133475,0.55,2123.1,2122.9,8.59638604]
[1746736133679,4.7095428,2123.4,2122.9,13.30690895]
[1746736133882,0.55,2123.3,2123.0,3.0]
[1746736134117,5.25975903,2123.3,2123.0,3.0]
[1746736134414,5.25955533,2123.4,2123.0,3.0471011]
[1746736134723,0.55,2123.4,2123.1,2.4116885]
[1746736134897,4.7096537,2123.3,2123.1,2.4116885]
[1746736135620,4.70979074,2123.3,2123.1,2.4116885]
[1746736135820,4.70987189,2123.2,2123.1,0.7763]
[1746736136112,4.70987189,2123.2,2123.0,3.0]
[1746736138389,4.70996984,2123.2,2123.0,16.25]
[1746736140087,4.70996984,2123.2,2123.1,16.25]
[1746736140291,4.70985547,2123.3,2123.1,16.25]
[1746736140891,4.70987189,2123.2,2123.1,16.25]
[1746736143103,4.70987189,2123.2,2123.1,6.11]
[1746736143712,5.2589488,2123.7,2123.2,5.5327201]
[1746736143922,4.70902014,2123.6,2123.3,6.11]
[1746736144141,0.8204,2123.8,2123.3,6.11]
[1746736144142,5.52905477,2123.8,2123.3,6.11]
[1746736144436,4.70869684,2123.8,2123.4,0.04709257]
[1746736144642,9.4169607,2123.9,2123.4,4.75636757]
[1746736144863,16.97,2124.1,2123.6,0.8064]
[1746736145001,4.70820481,2124.0,2123.6,0.85348353]
[1746736145198,4.70820481,2124.0,2123.7,6.11]
[1746736145399,4.70776681,2124.2,2123.8,16.25]
[1746736145616,4.70788009,2124.1,2123.9,2.09587568]
[1746736146248,3.765,2124.3,2124.0,6.11]
[1746736146452,3.14465553,2124.5,2124.2,3.0]
[1746736146633,3.14465553,2124.5,2124.3,6.11]
[1746736146836,3.14465553,2124.5,2124.4,2.3957488]
[1746736147174,3.14465553,2124.5,2124.4,2.44281892]
[1746736147355,3.14465553,2124.5,2124.4,2.3957488]
[1746736147658,21.67096785,2125.0,2124.4,2.3957488]
[1746736147659,5.03144885,2125.4,2125.0,8.46618235]
[1746736147827,3.15751964,2125.1,2125.0,21.90098081]
[1746736148026,3.15751964,2125.1,2125.0,25.07426797]
[1746736148351,3.15751964,2125.1,2125.0,26.92956461]
[1746736148557,0.23939025,2125.1,2125.0,27.71456756]
[1746736148787,5.03144885,2126.0,2125.9,4.70389011]
[1746736149079,1.09670028,2126.2,2126.1,7.70344762]
[1746736149259,6.91824217,2126.7,2126.6,7.70234176]
[1746736149457,6.91824217,2126.7,2126.6,21.08709137]
[1746736149653,5.54156011,2126.7,2126.6,25.77560209]
[1746736149856,3.20503087,2126.9,2126.8,7.77339956]
[1746736150180,9.74843216,2127.1,2127.0,7.70145745]
[1746736150381,9.74843216,2127.1,2127.0,8.10877046]
[1746736150576,9.74843216,2127.1,2127.0,9.54502943]
[1746736150877,10.69182882,2127.5,2127.4,4.70057346]
[1746736151043,11.63522548,2127.9,2127.8,7.69968982]
[1746736151241,11.63522548,2127.9,2127.8,11.06470858]
[1746736151478,11.63522548,2127.9,2127.8,14.32813943]
[1746736151854,11.63522548,2127.9,2127.8,15.84912134]
[1746736152181,11.33562346,2127.9,2127.8,16.49048091]
[1746736152487,0.7976,2128.3,2127.2,0.8088]
[1746736152786,0.7976,2128.3,2127.3,0.0469998]
[1746736152787,4.69963454,2127.9,2127.3,0.0469998]
[1746736153084,4.69814423,2128.5,2127.5,3.0]
[1746736153285,4.69814423,2128.5,2127.3,3.8079998]
[1746736153286,4.69848707,2128.4,2127.7,8.96147255]
[1746736153440,4.69774842,2128.7,2127.8,0.7602]
[1746736153647,4.69682025,2129.1,2127.9,3.80797927]
[1746736153964,4.69758841,2128.8,2128.1,4.69898786]
[1746736154279,6.91412627,2129.2,2129.1,4.69682025]
[1746736154465,4.69371933,2130.6,2129.4,3.0]
[1746736154466,4.69464935,2130.1,2129.4,3.0]
[1746736154651,4.6948359,2130.0,2129.5,0.04694864]
[1746736154980,0.46948359,2130.0,2129.3,0.04694574]
[1746736155282,0.46948359,2130.0,2129.1,7.5]
[1746736155283,4.69637909,2129.3,2129.1,3.739]
[1746736155482,4.69659966,2129.2,2129.1,3.739]
[1746736155974,4.69707691,2129.0,2128.1,0.8185]
[1746736156143,0.7745,2129.5,2128.2,5.97484551]
[1746736156345,0.7745,2129.5,2128.3,0.04697927]
[1746736156346,4.69802143,2128.6,2128.3,0.04697927]
[1746736156598,4.6981688,2128.5,2128.3,0.04697927]
[1746736156890,4.69858572,2128.3,2128.2,9.70984551]
[1746736157046,5.24858572,2128.3,2128.2,5.97484551]
[1746736157248,4.69836496,2128.4,2128.2,5.97484551]
[1746736157460,4.69858572,2128.3,2128.2,5.97484551]
[1746736157988,4.69968982,2127.8,2127.7,3.88867605]
[1746736158189,4.69950905,2127.9,2127.7,3.07017605]
[1746736158358,0.8319,2128.4,2127.7,3.07017605]
[1746736158359,4.69921743,2128.1,2127.7,3.07017605]
[1746736158559,5.24861503,2128.3,2127.7,3.07017605]
[1746736158786,4.69968982,2127.8,2127.7,3.07017605]
[1746736158990,4.70049392,2127.5,2127.3,3.85697605]
[1746736159188,0.8319,2129.0,2127.3,3.85697605]
[1746736159378,4.69819448,2128.5,2127.9,4.69927073]
[1746736159578,4.69841082,2128.4,2128.0,3.04698085]
[1746736159906,4.69765877,2128.8,2128.2,4.69877984]
[1746736160207,3.733,2129.1,2128.2,4.69877984]
[1746736160208,4.69772473,2128.7,2128.3,0.82877533]
[1746736160410,4.69743937,2128.9,2128.4,4.7453166]
[1746736160576,4.69743937,2128.9,2128.4,0.04697391]
[1746736160780,4.69636705,2129.4,2128.6,7.69779469]
[1746736160980,4.69636705,2129.4,2128.6,3.0]
[1746736160981,4.69703502,2129.1,2128.6,3.0]
[1746736161181,4.69686118,2129.1,2128.6,7.69790676]
[1746736161397,4.69715027,2129.0,2128.7,0.04696685]
[1746736161594,4.69692721,2129.1,2128.7,0.04696685]
[1746736161796,4.6973158,2128.9,2128.6,3.0]
[1746736161997,4.69728925,2128.9,2128.6,3.0]
[1746736162307,4.69707187,2129.0,2128.7,0.04697111]
[1746736162308,4.69713488,2129.0,2128.7,0.04697111]
[1746736162510,5.48749961,2129.7,2128.7,0.04697111]
[1746736162511,4.69590616,2129.6,2128.8,0.7814]
[1746736162711,4.69541471,2129.8,2129.3,4.69634333]
[1746736162909,0.08923342,2129.5,2129.4,3.73]
[1746736163079,8.42599619,2130.4,2128.8,0.7814]
[1746736163080,0.7615,2129.7,2128.8,0.7814]
[1746736163276,4.69742524,2128.9,2128.7,3.0]
[1746736163471,5.96147255,2128.8,2127.5,3.85157605]
[1746736163696,4.7001316,2127.6,2127.5,3.07017605]
[1746736164013,5.2501316,2127.6,2127.5,3.07017605]
[1746736167724,4.70049403,2127.5,2127.0,4.74844605]
[1746736168029,1.51433318,2127.6,2127.0,0.04700516]
[1746736168236,0.55,2127.6,2126.8,0.04700355]
[1746736168393,5.25021171,2127.6,2126.9,4.70150332]
[1746736168598,5.25021171,2127.6,2126.7,0.7796]
[1746736168599,0.55,2127.6,2126.7,0.7796]
[1746736168798,5.45014052,2128.1,2126.8,3.84818646]
[1746736169000,4.69992632,2127.7,2127.2,4.70091675]
[1746736169413,4.281,2128.0,2127.1,11.42819137]
[1746736169730,4.69991893,2127.7,2127.2,4.700918]
[1746736170606,4.69877953,2128.3,2127.7,4.69976786]
[1746736170812,0.46987795,2128.2,2127.8,0.04699287]
[1746736171120,4.69856272,2128.4,2127.8,4.74667991]
[1746736171324,5.24897691,2128.2,2127.8,3.04699287]
[1746736171704,4.69890573,2128.2,2127.8,3.04699287]
[1746736172335,4.69904931,2128.1,2127.8,3.04699287]
[1746736172635,4.69868011,2128.3,2127.8,3.04699287]
[1746736172940,4.69946896,2127.9,2127.7,13.10534447]
[1746736173139,4.69968982,2127.8,2127.7,13.10534447]
[1746736173338,4.70015197,2127.6,2127.4,13.10534447]
[1746736173925,4.70057346,2127.4,2127.3,3.0]
[1746736174135,4.70038866,2127.5,2127.2,13.10534447]
[1746736174136,4.70079443,2127.3,2127.2,13.10534447]
[1746736174339,0.55,2127.5,2127.0,13.10534447]
[1746736174505,1.07501421,2127.5,2127.0,13.10534447]
[1746736174704,4.70114897,2127.2,2127.0,13.10534447]
[1746736174956,0.55,2127.3,2126.8,2.96534447]
[1746736175125,4.70088694,2127.3,2126.9,0.04701388]
[1746736175308,4.70094129,2127.3,2126.9,0.04701388]
[1746736175518,4.70113748,2127.2,2126.8,2.96534447]
[1746736175720,0.55,2127.4,2126.8,2.96534447]
[1746736175919,4.70113235,2127.2,2126.8,2.96534447]
[1746736176119,4.70088893,2127.3,2126.9,3.04701056]
[1746736176345,4.70113368,2127.2,2126.9,3.04701056]
[1746736176548,1.03060142,2127.4,2126.9,0.04701056]
[1746736176847,8.43126676,2127.6,2127.1,3.0]
[1746736177143,4.70046946,2127.5,2127.2,0.04700414]
[1746736177318,9.27425962,2127.6,2127.1,3.0]
[1746736177319,4.70101541,2127.2,2127.1,3.0]
[1746736177748,5.25044113,2127.5,2127.1,3.0]
[1746736177951,5.25046417,2127.5,2127.1,3.0]
[1746736178243,4.57412668,2127.6,2127.1,3.04700805]
[1746736178545,4.70047575,2127.5,2127.1,3.04700805]
[1746736178796,4.70088855,2127.3,2127.1,3.0]
[1746736179075,4.70089847,2127.3,2127.2,0.41625667]
[1746736179381,4.70069978,2127.4,2127.2,0.41625667]
[1746736179584,4.70050278,2127.5,2127.2,0.41625667]
[1746736179881,4.70059377,2127.4,2127.3,0.41625667]
[1746736181235,6.01378918,2127.4,2127.3,0.41625667]
[1746736181735,6.56378918,2127.4,2127.3,0.41625667]
[1746736182168,1.86319541,2127.4,2127.3,3.38160114]
[1746736182483,6.56378918,2127.4,2127.3,2.96534447]
[1746736182974,4.70167849,2126.9,2126.8,2.96534447]
[1746736183440,4.70167849,2126.9,2126.8,3.38280348]
[1746736184046,6.66212262,2126.9,2126.8,0.41745901]
[1746736184265,6.11212262,2126.9,2126.8,0.41745901]
[1746736184583,0.8155,2127.3,2126.6,4.70221516]
[1746736184770,0.826,2127.7,2126.8,0.8224]
[1746736185083,4.70128899,2127.1,2126.9,13.52485971]
[1746736185281,4.70128899,2127.1,2127.0,13.52485971]
[1746736185498,4.70128899,2127.1,2127.0,13.78822895]
[1746736185650,4.70128899,2127.1,2127.0,14.20568796]
[1746736185853,4.70102148,2127.2,2127.0,14.20568796]
[1746736186077,4.70106873,2127.2,2127.0,13.78617272]
[1746736186244,4.70093509,2127.3,2127.1,0.26336924]
[1746736186449,4.70093509,2127.3,2127.1,1.10050685]
[1746736186649,4.70101541,2127.2,2127.1,0.68082825]
[1746736186946,4.70101541,2127.2,2127.1,3.64617272]
[1746736187249,4.70101541,2127.2,2127.1,0.68082825]
[1746736187455,3.732,2127.6,2127.1,1.10059379]
[1746736187756,4.70101009,2127.3,2127.2,0.26336924]
[1746736188067,4.70101009,2127.3,2127.2,0.68082825]
[1746736188551,4.70101009,2127.3,2127.2,1.10056006]
[1746736188754,4.70101009,2127.3,2127.2,0.68082825]
[1746736188953,5.25035252,2127.5,2127.2,0.41745901]
[1746736189162,4.70043831,2127.5,2127.1,5.51570893]
[1746736189555,4.70044992,2127.5,2127.2,0.04700379]
[1746736189889,4.70044992,2127.5,2127.1,5.51565554]
[1746736190090,4.70044992,2127.5,2127.1,0.8145]
[1746736190387,4.70058324,2127.4,2127.1,0.8145]
[1746736190965,4.70019532,2127.6,2127.2,17.80624087]
[1746736191354,4.70043068,2127.5,2127.2,13.10534447]
[1746736191554,4.7004641,2127.5,2127.2,13.10534447]
[1746736191750,0.55,2127.6,2127.2,13.10534447]
[1746736191950,4.70079443,2127.3,2127.2,13.10534447]
[1746736192257,4.70076057,2127.4,2127.2,13.10534447]
[1746736192578,4.7004407,2127.5,2127.2,13.10534447]
[1746736193291,9.40100379,2127.5,2127.2,13.10534447]
[1746736193488,4.7004407,2127.5,2127.2,13.10534447]
[1746736193792,4.70055747,2127.5,2127.2,13.10534447]
[1746736193991,4.70055747,2127.5,2127.3,13.10534447]
[1746736194159,4.70072339,2127.4,2127.3,13.10534447]
[1746736195106,4.70037746,2127.5,2127.3,13.10534447]
[1746736195261,4.70072339,2127.4,2127.3,13.10534447]
[1746736197160,4.70091914,2127.3,2127.1,13.10534447]
[1746736197503,0.55,2127.5,2127.1,13.10534447]
[1746736197802,4.70101541,2127.2,2127.1,13.10534447]
[1746736198983,4.70101541,2127.2,2127.1,2.96534447]
[1746736199293,6.73743628,2127.2,2127.1,2.96534447]
[1746736199494,10.45743628,2127.2,2127.1,2.96534447]
[1746736200985,5.25189956,2126.8,2126.7,6.1082556]
[1746736201169,5.25189956,2126.8,2126.7,3.14291113]
[1746736201379,4.70189956,2126.8,2126.7,6.1082556]
[1746736201582,4.7018619,2126.9,2126.7,6.1082556]
[1746736201890,4.70189956,2126.8,2126.7,6.1082556]
[1746736203168,6.56427594,2126.8,2126.7,2.96534447]
[1746736204209,5.25189956,2126.8,2126.7,2.96534447]
[1746736205719,4.70157946,2127.0,2126.7,3.74954447]
[1746736205922,4.70069384,2127.4,2126.8,2.96534447]
[1746736206132,4.69913894,2128.1,2127.1,4.70123642]
[1746736206133,5.48869328,2128.1,2127.1,4.70123642]
[1746736206417,4.69870362,2128.3,2127.4,7.70055119]
[1746736206721,4.69939222,2128.0,2127.7,0.816]
[1746736206888,3.72,2128.7,2127.8,4.69956357]
[1746736207094,3.72,2128.7,2128.0,4.69910233]
[1746736207095,4.6981497,2128.5,2128.0,4.69910233]
[1746736207320,4.69824862,2128.5,2128.0,9.01696582]
[1746736207621,4.69824862,2128.5,2128.1,4.69902689]
[1746736207792,4.69824862,2128.5,2128.1,3.0]
[1746736207993,4.69855582,2128.4,2127.8,3.35218489]
[1746736208226,4.69913572,2128.1,2127.7,3.816]
[1746736208429,0.55,2127.9,2127.1,0.8252]
[1746736208730,4.70048127,2127.5,2127.1,0.8252]
[1746736208951,0.46991357,2128.0,2127.2,3.75800938]
[1746736209150,3.72,2128.1,2127.2,3.75800938]
[1746736209151,4.69868813,2128.3,2127.7,4.69976164]
[1746736209351,0.55,2128.4,2127.8,0.04698917]
[1746736209507,4.69882014,2128.2,2127.8,0.04699214]
[1746736210006,1.54474407,2128.2,2127.6,0.7699]
[1746736210210,0.55,2128.1,2127.6,0.7699]
[1746736210406,4.6994705,2127.9,2127.6,0.7699]
[1746736210847,0.55,2128.2,2127.6,0.7699]
[1746736211108,0.55,2128.2,2127.5,3.40545805]
[1746736211109,0.55,2128.2,2127.5,3.45245636]
[1746736211418,4.69879407,2128.3,2127.7,4.69970563]
[1746736211618,4.69898978,2128.2,2127.8,0.04698859]
[1746736211821,4.69865805,2128.3,2127.8,7.69959124]
[1746736212123,4.69865805,2128.3,2127.9,0.0469884]
[1746736212738,0.55,2128.6,2128.1,0.8165]
[1746736212739,4.69837952,2128.4,2128.1,0.8165]
[1746736212955,8.40600217,2129.1,2128.1,0.8165]
[1746736212956,17.7374,2129.2,2128.3,4.69855936]
[1746736213155,21.4564,2129.2,2128.4,13.10534447]
[1746736213461,4.6978025,2128.7,2128.4,13.10534447]
[1746736213666,17.7374,2129.2,2128.5,13.10534447]
[1746736213876,4.69645343,2129.3,2128.7,3.0]
[1746736214023,4.69671054,2129.2,2128.8,14.8844178]
[1746736214227,4.69608079,2129.5,2129.0,5.49324618]
[1746736214427,4.69559962,2129.7,2129.2,7.69658428]
[1746736214654,4.5068,2130.4,2129.5,0.7963]
[1746736214852,4.69546718,2129.8,2129.5,0.7963]
[1746736215268,4.69516867,2129.9,2129.5,0.7963]
[1746736215788,4.69426667,2130.3,2129.8,4.69517672]
[1746736215933,4.69392183,2130.5,2130.0,4.69472349]
[1746736216127,4.69392183,2130.5,2129.9,11.44886847]
[1746736216128,4.69429304,2130.3,2130.1,0.84324027]
[1746736216332,4.69362349,2130.6,2130.1,5.53784662]
[1746736216553,4.69394081,2130.5,2130.1,0.84324027]
[1746736216764,0.005,2130.8,2130.1,0.84324027]
[1746736216947,4.69439489,2130.2,2130.1,0.7963]
[1746736217339,2.16768883,2130.8,2130.1,4.5033]
[1746736217666,4.69439489,2130.2,2129.4,0.7903]
[1746736217870,4.69483568,2130.0,2129.5,0.04695772]
[1746736218069,4.69573363,2129.6,2129.5,0.04695772]
[1746736218275,0.55,2130.2,2129.5,0.04695772]
[1746736218276,5.51116461,2130.9,2129.7,3.0]
[1746736218428,4.69351356,2130.6,2129.7,3.0]
[1746736218632,4.69479259,2130.1,2129.7,3.0]
[1746736218933,2.16768883,2130.8,2129.9,3.0]
[1746736219133,0.005,2130.8,2130.2,0.8316]
[1746736219366,0.005,2130.8,2130.7,0.8316]
[1746736219573,0.005,2130.8,2130.7,8.56304437]
[1746736219745,0.005,2130.8,2130.7,3.8228313]
[1746736219932,4.69807302,2130.8,2130.7,0.8228313]
[1746736220144,4.69363879,2130.6,2130.1,6.705]
[1746736220481,4.69479541,2130.1,2129.7,3.0]
[1746736220639,0.09201722,2130.5,2129.7,3.0]
[1746736220842,0.005,2130.8,2130.1,5.96147255]
[1746736221067,0.005,2130.8,2130.7,4.69329328]
[1746736221278,0.05168284,2131.1,2130.9,3.0]
[1746736221454,0.05168284,2131.1,2131.0,3.703]
[1746736221770,0.05168284,2131.1,2131.0,11.39563256]
[1746736221971,0.05168284,2131.1,2131.0,9.83988785]
[1746736222173,0.7946,2132.9,2131.7,4.69096299]
[1746736222341,0.7946,2132.9,2131.8,3.703]
[1746736222542,4.68910978,2132.7,2131.9,0.7695]
[1746736222742,4.68943915,2132.5,2131.5,0.7695]
[1746736222951,4.68988616,2132.3,2131.6,3.703]
[1746736223152,4.69025802,2132.1,2131.6,8.39425434]
[1746736223351,4.69038408,2132.1,2131.5,0.7695]
[1746736223645,4.6897716,2132.3,2131.8,7.69075832]
[1746736223952,4.68947321,2132.5,2131.9,5.46009011]
[1746736224150,0.23142688,2134.0,2132.0,0.04689814]
[1746736224475,0.7946,2133.4,2132.1,0.04688397]
[1746736224655,4.68834451,2133.0,2132.4,4.68937723]
[1746736224854,4.68772305,2133.3,2132.7,4.68876579]
[1746736225074,4.68581603,2134.1,2132.9,0.7695]
[1746736225256,4.68823253,2133.0,2132.9,0.81637562]
[1746736225583,4.68683462,2133.7,2133.1,4.68789418]
[1746736225888,4.68683884,2133.7,2133.3,3.7695]
[1746736226107,4.68631259,2133.9,2133.4,7.404]
[1746736226243,4.68558863,2134.3,2133.6,4.68678806]
[1746736226443,0.10366466,2133.8,2133.7,6.74785347]
[1746736226644,4.68574383,2134.2,2133.7,6.701]
[1746736226882,0.7946,2134.9,2133.8,3.766]
[1746736227082,0.10707887,2134.1,2133.8,8.45238745]
[1746736227376,0.1072327,2134.0,2133.9,3.699]
[1746736227588,0.1072327,2134.0,2133.3,6.93456981]
[1746736227589,0.1072327,2134.0,2133.5,3.699]
[1746736227786,8.38613221,2134.5,2133.6,0.04686024]
[1746736227995,4.6865192,2133.8,2133.6,3.699]
[1746736228157,0.83861322,2134.4,2133.4,0.7727]
[1746736228358,4.68616783,2134.0,2133.5,0.0468627]
[1746736228555,4.68704981,2133.6,2133.4,4.4787]
[1746736228799,4.79272786,2133.5,2133.4,0.7727]
[1746736228995,4.68882321,2132.8,2132.4,0.54588772]
[1746736229163,1.05357182,2133.5,2133.0,4.68822392]
[1746736229358,0.10559405,2133.5,2133.1,3.716]